bitfinex/quotes_BTCUSD_20250730
["timestamp","ask_amount","ask_price","bid_price","bid_amount"]
[1753907088818,3.50132141,117430.0,117420.0,0.55391911]
[1753907090653,3.48534419,117430.0,117420.0,0.55391911]
[1753907090889,3.50328129,117430.0,117420.0,0.14377]
[1753907091139,3.59073859,117430.0,117420.0,0.14377]
[1753907091362,3.66205859,117430.0,117420.0,0.0657]
[1753907091657,3.57758129,117430.0,117420.0,0.0667]
[1753907092422,3.57758129,117430.0,117420.0,0.0687]
[1753907094706,3.9845004,117430.0,117420.0,0.0687]
[1753907094926,3.57758129,117430.0,117420.0,0.0687]
[1753907095542,3.5695931,117430.0,117420.0,0.0687]
[1753907095814,3.57758305,117430.0,117420.0,0.0687]
[1753907096280,3.57758305,117430.0,117420.0,0.003]
[1753907096535,4.32754271,117430.0,117420.0,0.003]
[1753907096776,4.31902737,117430.0,117420.0,0.003]
[1753907097731,4.31902737,117430.0,117420.0,0.001]
[1753907097953,4.31902737,117430.0,117420.0,0.002]
[1753907098154,4.37239814,117430.0,117420.0,0.002]
[1753907098406,4.37239814,117430.0,117420.0,0.001]
[1753907098739,4.37239814,117430.0,117420.0,0.003]
[1753907099156,4.14871278,117430.0,117420.0,0.003]
[1753907099402,4.15722849,117430.0,117420.0,0.003]
[1753907099730,4.28665081,117430.0,117420.0,0.003]
[1753907099845,4.27813547,117430.0,117420.0,0.003]
[1753907100314,4.10782125,117430.0,117420.0,0.003]
[1753907100549,4.13343125,117430.0,117420.0,0.003]
[1753907100832,3.90804978,117430.0,117420.0,0.003]
[1753907101075,3.54503572,117430.0,117420.0,0.14281]
[1753907101559,3.54503572,117430.0,117420.0,0.14492]
[1753907101560,3.45757842,117430.0,117420.0,0.14492]
[1753907101804,3.44710337,117430.0,117420.0,0.14815]
[1753907102051,3.29880374,117430.0,117420.0,0.55506911]
[1753907102276,0.13232,117430.0,117420.0,0.55506911]
[1753907102507,3.477356,117430.0,117420.0,0.55506911]
[1753907109303,3.345036,117430.0,117420.0,0.55506911]
[1753907109511,3.477316,117430.0,117420.0,0.55506911]
[1753907110564,3.479436,117430.0,117420.0,0.14281]
[1753907110780,3.6379733,117430.0,117420.0,0.0687]
[1753907110990,3.96041511,117430.0,117420.0,0.036]
[1753907111226,3.97744543,117430.0,117420.0,0.003]
[1753907111436,4.22004894,117430.0,117420.0,0.003]
[1753907111649,4.04121901,117430.0,117420.0,0.003]
[1753907111865,3.6029999,117430.0,117420.0,0.003]
[1753907112065,4.08588082,117430.0,117420.0,0.003]
[1753907112916,4.10291187,117430.0,117420.0,0.003]
[1753907113338,4.09439624,117430.0,117420.0,0.003]
[1753907113554,4.33632595,117430.0,117420.0,0.003]
[1753907113772,4.40377307,117430.0,117420.0,0.003]
[1753907114397,4.31929577,117430.0,117420.0,0.002]
[1753907115003,3.08516792,117420.0,117410.0,0.00014571]
[1753907115212,3.72503509,117420.0,117410.0,0.00014571]
[1753907115620,3.71651895,117420.0,117410.0,0.00014571]
[1753907115976,3.68351511,117420.0,117410.0,0.00014571]
[1753907116190,3.29257132,117420.0,117410.0,0.00014571]
[1753907116393,0.70297077,117420.0,117410.0,0.00214571]
[1753907116619,3.71652275,117420.0,117410.0,0.00214571]
[1753907116828,3.71652275,117420.0,117410.0,0.00314571]
[1753907117029,3.72503904,117420.0,117410.0,0.00314571]
[1753907117430,4.39580645,117420.0,117410.0,0.00314571]
[1753907117782,4.60379415,117420.0,117410.0,0.00314571]
[1753907118722,1.59875815,117420.0,117410.0,0.00314571]
[1753907118988,3.005036,117400.0,117390.0,0.11682071]
[1753907119226,3.137316,117400.0,117390.0,0.11907645]
[1753907119473,3.137316,117400.0,117390.0,0.12230645]
[1753907119695,3.139436,117400.0,117390.0,0.12230645]
[1753907120433,3.139436,117400.0,117390.0,0.12530645]
[1753907121296,3.137316,117400.0,117390.0,0.53222556]
[1753907121619,3.137316,117400.0,117390.0,0.12830645]
[1753907122119,3.137316,117400.0,117390.0,0.53522556]
[1753907122791,0.13228,117400.0,117390.0,0.12830645]
[1753907123197,3.137316,117400.0,117390.0,0.12830645]
[1753907123408,3.139436,117400.0,117390.0,0.12830645]
[1753907123841,3.18733849,117400.0,117390.0,0.12830645]
[1753907124465,3.18733849,117400.0,117390.0,0.12507645]
[1753907124877,3.21727339,117400.0,117390.0,0.12507645]
[1753907125309,3.22047339,117400.0,117390.0,0.12507645]
[1753907125741,3.22047339,117400.0,117390.0,0.12296645]
[1753907125942,3.22047339,117400.0,117390.0,0.11035574]
[1753907127021,3.1725709,117400.0,117390.0,0.11035574]
[1753907127686,3.1725709,117400.0,117390.0,0.14225574]
[1753907128121,3.1693709,117400.0,117390.0,0.14427574]
[1753907130166,3.1693709,117400.0,117390.0,0.14746574]
[1753907131029,3.1693709,117400.0,117390.0,0.14427574]
[1753907132083,3.20826821,117400.0,117390.0,0.14427574]
[1753907133178,3.1693709,117400.0,117390.0,0.14427574]
[1753907135458,3.1723909,117400.0,117390.0,0.14427574]
[1753907135659,3.1723909,117400.0,117390.0,0.14225574]
[1753907140208,3.2423309,117400.0,117390.0,0.14225574]
[1753907140431,3.2423309,117400.0,117390.0,0.00614574]
[1753907140652,3.3268082,117400.0,117390.0,0.00614574]
[1753907141845,3.2568682,117400.0,117390.0,0.07916574]
[1753907142695,3.1723909,117400.0,117390.0,0.10946574]
[1753907142925,3.1723909,117400.0,117390.0,0.13996574]
[1753907145955,3.0349709,117400.0,117390.0,0.55209485]
[1753907146103,3.1672109,117400.0,117390.0,0.55209485]
[1753907146700,3.1672109,117400.0,117390.0,0.14517574]
[1753907147037,0.1621749,117400.0,117390.0,0.55209485]
[1753907147245,3.1672109,117400.0,117390.0,0.14517574]
[1753907147448,3.1672109,117400.0,117390.0,0.55209485]
[1753907147655,3.040907,117400.0,117390.0,0.55209485]
[1753907148647,3.042937,117400.0,117390.0,0.55209485]
[1753907149097,2.910697,117400.0,117390.0,0.55209485]
[1753907149533,3.042897,117400.0,117390.0,0.55209485]
[1753907151042,3.042897,117400.0,117390.0,0.14198574]
[1753907152000,3.07209521,117400.0,117390.0,0.14198574]
[1753907155516,3.07209521,117400.0,117390.0,0.54890485]
[1753907156496,3.07209521,117400.0,117390.0,0.14198574]
[1753907156716,3.07516521,117400.0,117390.0,0.54890485]
[1753907157180,3.07516521,117400.0,117390.0,0.14198574]
[1753907157392,3.14463521,117400.0,117390.0,0.10946574]
[1753907157598,3.14463521,117400.0,117390.0,0.03644574]
[1753907158028,3.65202308,117400.0,117390.0,0.00614574]
[1753907158254,3.56754578,117400.0,117390.0,0.00614574]
[1753907158478,3.16062667,117400.0,117390.0,0.00614574]
[1753907159358,3.14463521,117400.0,117390.0,0.00614574]
[1753907161363,3.14463521,117400.0,117390.0,0.07879574]
[1753907161852,3.07516521,117400.0,117390.0,0.07879574]
[1753907161974,3.07516521,117400.0,117390.0,0.54861485]
[1753907162205,3.07516521,117400.0,117390.0,0.14169574]
[1753907162410,3.07516521,117400.0,117390.0,0.54861485]
[1753907162990,3.07516521,117400.0,117390.0,0.14169574]
[1753907163623,3.07516521,117400.0,117390.0,0.54861485]
[1753907164028,3.07516521,117400.0,117390.0,0.14169574]
[1753907164278,3.07516521,117400.0,117390.0,0.11119574]
[1753907165232,3.07516521,117400.0,117390.0,0.14219574]
[1753907165878,2.94296521,117400.0,117390.0,0.14219574]
[1753907166229,3.07512521,117400.0,117390.0,0.14219574]
[1753907172630,3.07512521,117400.0,117390.0,0.54911485]
[1753907172839,3.07512521,117400.0,117390.0,0.14219574]
[1753907173071,3.07512521,117400.0,117390.0,0.54911485]
[1753907173241,3.07512521,117400.0,117390.0,0.14219574]
[1753907173442,3.07512521,117400.0,117390.0,0.54911485]
[1753907174675,3.07512521,117400.0,117390.0,0.14219574]
[1753907175016,3.07512521,117400.0,117390.0,0.11119574]
[1753907175378,3.17938982,117400.0,117390.0,0.07879574]
[1753907175698,3.17938982,117400.0,117390.0,0.00614574]
[1753907175916,3.19272156,117400.0,117390.0,0.00614574]
[1753907176319,3.15765695,117400.0,117390.0,0.00614574]
[1753907176525,3.08845695,117400.0,117390.0,0.11029574]
[1753907176730,3.15765695,117400.0,117390.0,0.03764574]
[1753907176935,3.15765695,117400.0,117390.0,0.00614574]
[1753907177550,3.17362924,117400.0,117390.0,0.00614574]
[1753907177957,3.15765695,117400.0,117390.0,0.00614574]
[1753907178940,3.16700162,117400.0,117390.0,0.00614574]
[1753907179339,3.72149803,117400.0,117390.0,0.00614574]
[1753907179553,3.73747161,117400.0,117390.0,0.00614574]
[1753907179799,3.74545864,117400.0,117390.0,0.00614574]
[1753907180023,3.7624936,117400.0,117390.0,0.00314574]
[1753907180247,3.76249353,117400.0,117390.0,0.00314574]
[1753907180451,3.75397601,117400.0,117390.0,0.00414574]
[1753907180656,3.68153127,117400.0,117390.0,0.00414574]
[1753907180827,3.67301397,117400.0,117390.0,0.00414574]
[1753907181057,3.67354424,117400.0,117390.0,0.00414574]
[1753907181594,3.67354424,117400.0,117390.0,0.00114574]
[1753907181795,3.68206169,117400.0,117390.0,0.00114574]
[1753907182004,3.6905792,117400.0,117390.0,0.00214574]
[1753907182220,3.68206161,117400.0,117390.0,0.00214574]
[1753907182642,3.69057906,117400.0,117390.0,0.00214574]
[1753907183134,3.2751425,117400.0,117390.0,0.00214574]
[1753907183423,3.68206477,117400.0,117390.0,0.00214574]
[1753907183891,3.67354733,117400.0,117390.0,0.00214574]
[1753907184108,3.6650301,117400.0,117390.0,0.00214574]
[1753907184318,3.67354733,117400.0,117390.0,0.00214574]
[1753907184537,3.25811099,117400.0,117390.0,0.00214574]
[1753907184758,3.09925369,117400.0,117390.0,0.48381485]
[1753907184973,3.08529695,117400.0,117390.0,0.08005574]
[1753907185194,3.08836695,117400.0,117390.0,0.07479574]
[1753907185404,3.10435123,117400.0,117390.0,0.07479574]
[1753907186043,2.97227123,117400.0,117390.0,0.07479574]
[1753907186273,3.10435123,117400.0,117390.0,0.07479574]
[1753907186488,3.10128123,117400.0,117390.0,0.07683574]
[1753907188711,0.19261423,117400.0,117390.0,0.07683574]
[1753907188922,3.10128123,117400.0,117390.0,0.07989574]
[1753907189987,2.96920123,117400.0,117390.0,0.07989574]
[1753907190201,3.08323695,117400.0,117390.0,0.4889445]
[1753907190416,3.06990521,117400.0,117390.0,0.48681485]
[1753907190849,3.27786521,117400.0,117390.0,0.07989574]
[1753907191024,3.27786521,117400.0,117390.0,0.4889445]
[1753907191216,3.27786521,117400.0,117390.0,0.48681485]
[1753907191663,0.36919821,117400.0,117390.0,0.48681485]
[1753907194526,0.36931847,117400.0,117390.0,0.48681485]
[1753907194779,0.36931847,117400.0,117390.0,0.07989574]
[1753907195027,0.36931847,117400.0,117390.0,0.08202539]
[1753907196063,0.50135847,117400.0,117390.0,0.4889445]
[1753907196323,0.50135847,117400.0,117390.0,0.48681485]
[1753907198458,0.50135847,117400.0,117390.0,0.07989574]
[1753907198706,0.50135847,117400.0,117390.0,0.08202539]
[1753907198937,0.50347847,117400.0,117390.0,0.07896539]
[1753907199148,0.37143847,117400.0,117390.0,0.07896539]
[1753907199357,0.37143847,117400.0,117390.0,0.08202539]
[1753907199571,0.36931847,117400.0,117390.0,0.08202539]
[1753907199787,0.50131847,117400.0,117390.0,0.08202539]
[1753907200772,0.50131847,117400.0,117390.0,0.4889445]
[1753907201029,0.50131847,117400.0,117390.0,0.48681485]
[1753907201497,0.36931847,117400.0,117390.0,0.48681485]
[1753907202469,0.18697057,117400.0,117390.0,0.48681485]
[1753907202730,0.00012026,117400.0,117390.0,0.48681485]
[1753907204616,0.50012026,117400.0,117390.0,0.48681485]
[1753907205035,0.02527074,117400.0,117390.0,0.48681485]
[1753907205453,0.52739074,117400.0,117390.0,0.07989574]
[1753907205670,0.96650993,117400.0,117390.0,0.07479574]
[1753907205881,3.88484685,117400.0,117390.0,0.00214574]
[1753907206339,3.47792774,117400.0,117390.0,0.00214574]
[1753907207191,3.88484685,117400.0,117390.0,0.00214574]
[1753907207864,3.47792774,117400.0,117390.0,0.00214574]
[1753907208260,3.41113774,117400.0,117390.0,0.07149574]
[1753907209516,3.41101748,117400.0,117390.0,0.07353574]
[1753907209851,3.40789748,117400.0,117390.0,0.07353574]
[1753907210297,3.40789748,117400.0,117390.0,0.07659574]
[1753907210950,3.27381748,117400.0,117390.0,0.07659574]
[1753907211176,0.49711048,117400.0,117390.0,0.07659574]
[1753907212506,0.50235048,117400.0,117390.0,0.07353574]
[1753907213388,0.49923048,117400.0,117390.0,0.07353574]
[1753907214080,0.50235048,117400.0,117390.0,0.07353574]
[1753907214270,0.50235048,117400.0,117390.0,0.07149574]
[1753907214507,0.1372,117400.0,117390.0,0.07149574]
[1753907214960,0.1372,117400.0,117390.0,0.00214574]
[1753907214961,3.51957611,117400.0,117390.0,0.00214574]
[1753907215160,3.60405341,117400.0,117390.0,0.00214574]
[1753907215385,3.51957611,117400.0,117390.0,0.00214574]
[1753907215959,3.55401316,117400.0,117390.0,0.00214574]
[1753907216510,3.89401316,117400.0,117390.0,0.00214574]
[1753907217076,3.48709405,117400.0,117390.0,0.00214574]
[1753907217271,3.89401316,117400.0,117390.0,0.00214574]
[1753907220758,3.89293488,117400.0,117390.0,0.00214574]
[1753907220971,3.89431488,117400.0,117390.0,0.00214574]
[1753907221179,3.90283225,117400.0,117390.0,0.00214574]
[1753907221439,3.90283218,117400.0,117390.0,0.00214574]
[1753907221650,3.93533522,117400.0,117390.0,0.00214574]
[1753907221874,4.01981252,117400.0,117390.0,0.00214574]
[1753907222089,4.60560769,117400.0,117390.0,0.00214574]
[1753907222298,4.6388779,117400.0,117390.0,0.00214574]
[1753907222724,4.6403479,117400.0,117390.0,0.00214574]
[1753907222930,4.63200912,117400.0,117390.0,0.00214574]
[1753907223161,4.63200912,117400.0,117390.0,0.00114574]
[1753907223582,4.56349182,117400.0,117390.0,0.00114574]
[1753907223791,4.58863641,117400.0,117390.0,0.00014574]
[1753907224003,4.78863641,117400.0,117390.0,0.00014574]
[1753907224413,4.58863641,117400.0,117390.0,0.00014574]
[1753907224871,4.58011875,117400.0,117390.0,0.00014574]
[1753907225084,4.78111875,117400.0,117390.0,0.00014574]
[1753907225362,4.69973271,117400.0,117390.0,0.00014574]
[1753907226395,4.71306709,117400.0,117390.0,0.00014574]
[1753907229344,4.7130545,117400.0,117390.0,0.00014574]
[1753907229998,4.69972012,117400.0,117390.0,0.00014574]
[1753907231824,1.84228312,117400.0,117390.0,0.00014574]
[1753907232272,4.75092203,117400.0,117390.0,0.00014574]
[1753907232877,1.8555894,117400.0,117390.0,0.00014574]
[1753907233084,4.7642564,117400.0,117390.0,0.00014574]
[1753907233944,4.75627382,117400.0,117390.0,0.00014574]
[1753907234153,4.76425474,117400.0,117390.0,0.00014574]
[1753907234783,4.78264562,117400.0,117390.0,0.00014574]
[1753907236219,4.7746647,117400.0,117390.0,0.00014574]
[1753907236430,4.76668403,117400.0,117390.0,0.00014574]
[1753907236858,4.75870244,117400.0,117390.0,0.00014574]
[1753907238064,4.78264727,117400.0,117390.0,0.00014574]
[1753907238273,4.78263647,117400.0,117390.0,0.00014574]
[1753907238447,4.76581325,117400.0,117390.0,0.00014574]
[1753907238653,4.7658134,117400.0,117390.0,0.00014574]
[1753907239042,4.77379515,117400.0,117390.0,0.00014574]
[1753907239261,4.78177689,117400.0,117390.0,0.00014574]
[1753907239463,4.73945156,117400.0,117390.0,0.00014574]
[1753907239699,4.76351819,117400.0,117390.0,0.00014574]
[1753907239912,4.58956826,117400.0,117390.0,0.00014574]
[1753907241088,4.62498752,117400.0,117390.0,0.00014574]
[1753907241301,4.62584752,117400.0,117390.0,0.00014574]
[1753907241488,4.6178654,117400.0,117390.0,0.00014574]
[1753907241699,4.62584805,117400.0,117390.0,0.00014574]
[1753907244503,4.62498805,117400.0,117390.0,0.00014574]
[1753907244726,4.62584805,117400.0,117390.0,0.00014574]
[1753907245789,4.62437805,117400.0,117390.0,0.00014574]
[1753907247020,4.60837805,117400.0,117390.0,0.07417574]
[1753907248291,4.60838087,117400.0,117390.0,0.07417574]
[1753907248507,5.10838087,117400.0,117390.0,0.07417574]
[1753907249240,5.12677788,117400.0,117390.0,0.07417574]
[1753907250334,5.12677788,117400.0,117390.0,0.00014574]
[1753907251008,5.14247788,117400.0,117390.0,0.00014574]
[1753907251218,5.34247788,117400.0,117390.0,0.00014574]
[1753907252488,5.32677788,117400.0,117390.0,0.07417574]
[1753907253121,5.22484058,117400.0,117390.0,0.09549574]
[1753907253341,2.31617358,117400.0,117390.0,0.07919574]
[1753907253750,5.22484058,117400.0,117390.0,0.07919574]
[1753907254635,5.24242058,117400.0,117390.0,0.07712574]
[1753907254819,5.24242058,117400.0,117390.0,0.07919574]
[1753907255017,5.32689788,117400.0,117390.0,0.07919574]
[1753907255216,5.31069788,117400.0,117390.0,0.07919574]
[1753907255848,5.22622058,117400.0,117390.0,0.07919574]
[1753907256059,5.22623451,117400.0,117390.0,0.07919574]
[1753907256490,4.36186309,117400.0,117390.0,0.11159574]
[1753907256749,4.31301601,117400.0,117390.0,0.11159574]
[1753907256933,4.30451373,117400.0,117390.0,0.11159574]
[1753907257144,4.32196275,117400.0,117390.0,0.11159574]
[1753907257351,4.3389975,117400.0,117390.0,0.11159574]
[1753907257560,4.33899742,117400.0,117390.0,0.11159574]
[1753907257733,4.84742894,117400.0,117390.0,0.11159574]
[1753907257959,4.04348522,117400.0,117390.0,0.11159574]
[1753907258156,4.84880701,117400.0,117390.0,0.11159574]
[1753907258375,3.91504364,117400.0,117390.0,0.11159574]
[1753907258728,4.32196275,117400.0,117390.0,0.11159574]
[1753907259431,4.32196352,117400.0,117390.0,0.11159574]
[1753907259629,4.33529729,117400.0,117390.0,0.11159574]
[1753907260113,4.35233197,117400.0,117390.0,0.11159574]
[1753907260293,4.34381452,117400.0,117390.0,0.11159574]
[1753907260518,4.35233189,117400.0,117390.0,0.11159574]
[1753907260703,4.33899812,117400.0,117390.0,0.11159574]
[1753907260912,4.42347542,117400.0,117390.0,0.11159574]
[1753907261126,4.44051053,117400.0,117390.0,0.11159574]
[1753907261529,4.44051046,117400.0,117390.0,0.11159574]
[1753907261729,4.35603316,117400.0,117390.0,0.11159574]
[1753907262429,4.35603309,117400.0,117390.0,0.11159574]
[1753907262648,4.34751557,117400.0,117390.0,0.11159574]
[1753907262784,4.3645509,117400.0,117390.0,0.11159574]
[1753907263045,4.35603316,117400.0,117390.0,0.11159574]
[1753907263222,4.34751557,117400.0,117390.0,0.11159574]
[1753907263417,4.32196352,117400.0,117390.0,0.11159574]
[1753907263836,3.7406508,117400.0,117390.0,0.11159574]
[1753907264051,3.8724108,117400.0,117390.0,0.11159574]
[1753907264849,0.9637438,117400.0,117390.0,0.11159574]
[1753907265055,4.27932991,117400.0,117390.0,0.11159574]
[1753907265264,4.27932991,117400.0,117390.0,0.11259574]
[1753907265484,3.77932991,117400.0,117390.0,0.11259574]
[1753907265698,3.77832991,117400.0,117390.0,0.11259574]
[1753907265870,3.3714108,117400.0,117390.0,0.11259574]
[1753907266085,3.3714108,117400.0,117390.0,0.11359574]
[1753907266713,3.1551735,117400.0,117390.0,0.11359574]
[1753907266881,3.2869335,117400.0,117390.0,0.11359574]
[1753907267327,3.09993196,117400.0,117390.0,0.11359574]
[1753907267679,3.43993196,117400.0,117390.0,0.11359574]
[1753907267888,3.43993196,117400.0,117390.0,0.52051485]
[1753907268311,3.4239536,117400.0,117390.0,0.52051485]
[1753907269398,3.42383334,117400.0,117390.0,0.52051485]
[1753907269604,3.41584626,117400.0,117390.0,0.52051485]
[1753907269812,3.41584626,117400.0,117390.0,0.11359574]
[1753907270917,3.41584626,117400.0,117390.0,0.52051485]
[1753907271368,3.41584626,117400.0,117390.0,0.11359574]
[1753907272166,3.41580626,117400.0,117390.0,0.11359574]
[1753907272952,0.50713926,117400.0,117390.0,0.11359574]
[1753907273169,3.41580626,117400.0,117390.0,0.11359574]
[1753907279962,3.41580626,117400.0,117390.0,0.52051485]
[1753907280175,3.28408626,117400.0,117390.0,0.52051485]
[1753907280387,3.28408626,117400.0,117390.0,0.60499215]
[1753907280388,0.03541926,117400.0,117390.0,0.60499215]
[1753907280593,0.03541926,117400.0,117390.0,0.73667215]
[1753907281253,0.03541926,117400.0,117390.0,0.32975304]
[1753907281473,0.03541926,117400.0,117390.0,0.73567215]
[1753907281887,0.03541926,117400.0,117390.0,0.73867215]
[1753907283862,0.03541926,117400.0,117390.0,0.73767215]
[1753907285388,0.03541926,117400.0,117390.0,0.73967215]
[1753907286649,0.03541926,117400.0,117390.0,0.33275304]
[1753907286863,0.03541926,117400.0,117390.0,0.73967215]
[1753907299665,0.03541926,117400.0,117390.0,0.73955189]
[1753907300700,0.03541926,117400.0,117390.0,0.33263278]
[1753907300951,0.03541926,117400.0,117390.0,0.73955189]
[1753907303421,0.03541926,117400.0,117390.0,0.33263278]
[1753907303635,0.03541926,117400.0,117390.0,0.73955189]
[1753907307292,0.03679926,117400.0,117390.0,0.33251278]
[1753907307736,0.03541926,117400.0,117390.0,0.33251278]
[1753907307860,0.03541926,117400.0,117390.0,0.73943189]
[1753907308063,0.03541926,117400.0,117390.0,0.60787189]
[1753907308271,0.03541926,117400.0,117390.0,0.73943189]
[1753907309089,0.03541926,117400.0,117390.0,0.33251278]
[1753907309521,0.03541926,117400.0,117390.0,0.73943189]
[1753907312690,0.03679926,117400.0,117390.0,0.73943189]
[1753907312911,0.03679926,117400.0,117390.0,0.31641278]
[1753907313122,0.03679926,117400.0,117390.0,0.29800278]
[1753907313320,0.44371837,117400.0,117390.0,0.13654548]
[1753907313525,0.50667837,117400.0,117390.0,0.13654548]
[1753907313766,0.03679926,117400.0,117390.0,0.13867513]
[1753907313978,0.03679926,117400.0,117390.0,0.20706513]
[1753907314181,0.03679926,117400.0,117390.0,0.20493548]
[1753907314315,0.03679926,117400.0,117390.0,0.21006548]
[1753907314520,0.03541926,117400.0,117390.0,0.76446189]
[1753907322066,2.908667,117410.0,117390.0,0.76446189]
[1753907322274,2.908667,117410.0,117400.0,0.13364947]
[1753907322481,2.910047,117410.0,117400.0,0.20509947]
[1753907322662,0.00138,117410.0,117400.0,0.20297]
[1753907323362,0.00138,117410.0,117400.0,0.07145]
[1753907323526,0.00138,117410.0,117400.0,0.07051947]
[1753907323884,0.03651293,117410.0,117400.0,0.07251947]
[1753907324333,0.06661293,117410.0,117400.0,0.07039]
[1753907324548,0.55009382,117410.0,117400.0,0.002]
[1753907324754,3.41505904,117410.0,117400.0,0.002]
[1753907325177,3.75505904,117410.0,117400.0,0.002]
[1753907325591,3.76839072,117410.0,117400.0,0.003]
[1753907327775,3.7763853,117410.0,117400.0,0.003]
[1753907329392,2.96512619,117410.0,117400.0,0.00507]
[1753907329630,0.37513293,117410.0,117400.0,0.54493911]
[1753907331326,0.37513293,117410.0,117400.0,0.13802]
[1753907331486,0.37513293,117410.0,117400.0,0.14014947]
[1753907332176,0.37513293,117410.0,117400.0,0.11014947]
[1753907332618,0.37513293,117410.0,117400.0,0.07864947]
[1753907333318,0.37651293,117410.0,117400.0,0.07864947]
[1753907335109,0.37513293,117410.0,117400.0,0.07864947]
[1753907335601,0.37513293,117410.0,117400.0,0.11014947]
[1753907336703,0.37513293,117410.0,117400.0,0.14014947]
[1753907337196,0.37513293,117410.0,117400.0,0.54706858]
[1753907337414,0.37513293,117410.0,117400.0,0.54493911]
[1753907337858,0.37513293,117410.0,117400.0,0.13802]
[1753907338087,0.37513293,117410.0,117400.0,0.14014947]
[1753907339000,0.37513293,117410.0,117400.0,0.54706858]
[1753907339231,0.37513293,117410.0,117400.0,0.54493911]
[1753907340741,0.37513293,117410.0,117400.0,0.13802]
[1753907340917,0.37513293,117410.0,117400.0,0.14014947]
[1753907343072,0.37651293,117410.0,117400.0,0.07139]
[1753907343315,0.81353204,117410.0,117400.0,0.07139]
[1753907343565,3.76307554,117410.0,117400.0,0.003]
[1753907343775,3.85606956,117410.0,117400.0,0.003]
[1753907343984,4.0040192,117410.0,117400.0,0.003]
[1753907344186,3.98750942,117410.0,117400.0,0.003]
[1753907344389,3.97047634,117410.0,117400.0,0.003]
[1753907344604,3.58006598,117410.0,117400.0,0.003]
[1753907344811,3.97047634,117410.0,117400.0,0.003]
[1753907345178,3.98750949,117410.0,117400.0,0.003]
[1753907345604,4.07486373,117410.0,117400.0,0.003]
[1753907345777,4.10047666,117410.0,117400.0,0.003]
[1753907346006,4.01312249,117410.0,117400.0,0.003]
[1753907346495,1.10445549,117410.0,117400.0,0.003]
[1753907346678,4.02645416,117410.0,117400.0,0.003]
[1753907346834,4.01793751,117410.0,117400.0,0.003]
[1753907347037,4.02645416,117410.0,117400.0,0.003]
[1753907347260,4.01793751,117410.0,117400.0,0.003]
[1753907347499,4.02645416,117410.0,117400.0,0.003]
[1753907348094,4.13648228,117410.0,117400.0,0.003]
[1753907348312,4.1364822,117410.0,117400.0,0.003]
[1753907348544,4.49830887,117410.0,117400.0,0.003]
[1753907348767,4.49778212,117410.0,117400.0,0.003]
[1753907348980,4.49778248,117410.0,117400.0,0.003]
[1753907349213,4.92215061,117410.0,117400.0,0.003]
[1753907349447,4.91363367,117410.0,117400.0,0.003]
[1753907349684,4.95528647,117410.0,117400.0,0.003]
[1753907349901,4.9162809,117410.0,117400.0,0.003]
[1753907350318,3.70659165,117400.0,117390.0,2.548e-05]
[1753907350526,4.69162447,117400.0,117390.0,2.548e-05]
[1753907351133,4.74285447,117400.0,117390.0,2.548e-05]
[1753907351540,4.77674874,117400.0,117390.0,2.548e-05]
[1753907351767,4.79272092,117400.0,117390.0,2.548e-05]
[1753907353053,5.37256092,117400.0,117390.0,2.548e-05]
[1753907353301,5.37356092,117400.0,117390.0,2.548e-05]
[1753907354256,5.38689539,117400.0,117390.0,2.548e-05]
[1753907355271,5.37890968,117400.0,117390.0,2.548e-05]
[1753907356315,4.95618358,117400.0,117390.0,2.548e-05]
[1753907356644,4.9641617,117400.0,117390.0,2.548e-05]
[1753907357455,4.9897837,117400.0,117390.0,2.548e-05]
[1753907359892,5.39670281,117400.0,117390.0,2.548e-05]
[1753907360094,5.42170281,117400.0,117390.0,2.548e-05]
[1753907360317,2.49970134,117400.0,117390.0,2.548e-05]
[1753907360540,5.00144923,117400.0,117390.0,2.548e-05]
[1753907360977,5.00344923,117400.0,117390.0,2.548e-05]
[1753907361588,5.00244923,117400.0,117390.0,2.548e-05]
[1753907361850,5.02703523,117400.0,117390.0,2.548e-05]
[1753907362513,4.78310917,117380.0,117370.0,0.01]
[1753907362705,5.28968377,117380.0,117370.0,0.01004847]
[1753907362875,5.29054377,117380.0,117370.0,0.01004847]
[1753907363085,5.31617077,117380.0,117370.0,0.01004847]
[1753907363282,5.32950793,117380.0,117370.0,0.01004847]
[1753907364482,5.35522183,117380.0,117370.0,0.01004847]
[1753907364746,0.78761547,117360.0,117350.0,0.06686847]
[1753907364997,5.32932204,117360.0,117350.0,0.06735297]
[1753907365413,5.33413981,117360.0,117350.0,0.07040297]
[1753907365785,2.42547281,117360.0,117350.0,0.07040297]
[1753907365993,5.33413981,117360.0,117350.0,0.07040297]
[1753907368931,5.83413981,117360.0,117350.0,0.07040297]
[1753907369129,5.02030159,117360.0,117350.0,0.07249297]
[1753907369358,5.83413981,117360.0,117350.0,0.07249297]
[1753907370196,5.83413981,117360.0,117350.0,0.06735297]
[1753907370585,6.05976781,117360.0,117350.0,0.06735297]
[1753907370794,6.05976781,117360.0,117350.0,0.0004845]
[1753907370972,6.05976781,117360.0,117350.0,0.0722045]
[1753907371580,6.05976781,117360.0,117350.0,0.0004845]
[1753907372161,6.05976781,117360.0,117350.0,0.0722045]
[1753907372841,6.04642947,117360.0,117350.0,0.0722045]
[1753907373767,6.04642947,117360.0,117350.0,0.0718738]
[1753907374231,6.01204947,117360.0,117350.0,0.0771438]
[1753907375673,6.01342947,117360.0,117350.0,0.0771438]
[1753907375878,6.05906816,117360.0,117350.0,0.0771438]
[1753907376304,6.06006816,117360.0,117350.0,0.0771438]
[1753907376843,6.02776816,117360.0,117350.0,0.0771438]
[1753907377471,6.06006816,117360.0,117350.0,0.0771438]
[1753907379098,3.15140116,117360.0,117350.0,0.0771438]
[1753907379303,6.07603332,117360.0,117350.0,0.0750538]
[1753907380537,6.08401722,117360.0,117350.0,0.0750538]
[1753907381707,5.92031722,117360.0,117350.0,0.0771438]
[1753907381907,6.01883722,117360.0,117350.0,0.0771438]
[1753907382316,6.05113722,117360.0,117350.0,0.0771438]
[1753907382521,6.05251722,117360.0,117350.0,0.0771438]
[1753907383231,3.14385022,117360.0,117350.0,0.0771438]
[1753907383463,6.05251722,117360.0,117350.0,0.0771438]
[1753907384170,6.05251722,117360.0,117350.0,0.0750538]
[1753907384513,6.05252097,117360.0,117350.0,0.0750538]
[1753907385326,3.14385397,117360.0,117350.0,0.0750538]
[1753907385534,6.05252097,117360.0,117350.0,0.0750538]
[1753907385988,6.08482097,117360.0,117350.0,0.0718738]
[1753907387382,3.17615397,117360.0,117350.0,0.0718738]
[1753907387715,6.08482097,117360.0,117350.0,0.0718738]
[1753907387891,6.05252097,117360.0,117350.0,0.0750538]
[1753907389152,6.0709428,117360.0,117350.0,0.0750538]
[1753907390668,6.2758628,117360.0,117350.0,0.0750538]
[1753907391764,6.2435628,117360.0,117350.0,0.0771438]
[1753907391988,6.2421428,117360.0,117350.0,0.0771438]
[1753907392617,5.42830458,117360.0,117350.0,0.0771438]
[1753907392867,6.2421428,117360.0,117350.0,0.0771438]